bitfinex-derivatives/quotes_ETHF0:USTF0_20250116
["timestamp","ask_amount","ask_price","bid_price","bid_amount"]
[1737046012925,0.59748,3347.9,3347.8,0.45587743]
[1737046013125,0.59748,3347.9,3347.8,1.10036241]
[1737046014427,0.6346,3348.2,3347.8,1.10036241]
[1737046014626,0.6346,3348.2,3347.9,0.64448498]
[1737046014927,0.6346,3348.2,3348.0,1.10036241]
[1737046015131,1.27521,3348.3,3348.1,0.64448498]
[1737046015326,0.6778,3348.3,3348.2,1.24190498]
[1737046015526,0.2381463,3349.4,3348.2,44.65228498]
[1737046015725,3.2078,3349.7,3349.0,2.91470237]
[1737046015927,0.59722,3349.4,3349.1,0.64448498]
[1737046016135,0.59722,3349.4,3349.2,0.64448498]
[1737046016331,3.2078,3349.7,3349.3,0.64395477]
[1737046016537,0.59718,3349.6,3349.4,0.64395477]
[1737046016733,3.2078,3349.7,3349.5,0.64395477]
[1737046016928,3.80496,3349.7,3349.6,0.64395477]
[1737046017233,3.2078,3349.7,3349.6,1.24112477]
[1737046017427,3.2078,3350.0,3349.8,0.59712]
[1737046017735,3.2078,3350.0,3349.9,0.64395477]
[1737046018036,3.8049,3350.0,3349.9,0.64395477]
[1737046018337,3.8049,3350.0,3349.9,1.09903465]
[1737046019637,3.8049,3350.0,3349.9,0.74720617]
[1737046020132,3.2078,3350.0,3349.9,0.74720617]
[1737046020338,0.6778,3350.2,3349.9,1.0967338]
[1737046020538,0.59707,3350.2,3350.0,0.64085637]
[1737046020841,0.59707,3350.2,3350.1,0.29132874]
[1737046021042,0.59705,3350.3,3350.1,0.64077962]
[1737046021231,0.59705,3350.3,3350.2,0.29132874]
[1737046021833,0.59705,3350.3,3350.2,0.74720617]
[1737046022737,0.59705,3350.3,3350.2,0.45587743]
[1737046023240,0.59705,3350.3,3350.2,0.74598688]
[1737046024638,3.2078,3350.4,3350.2,0.74598688]
[1737046024841,3.80484,3350.4,3350.3,0.29010945]
[1737046025133,3.80484,3350.4,3350.3,1.09433021]
[1737046025337,3.80484,3350.4,3350.3,0.74598688]
[1737046025727,3.80484,3350.4,3350.3,0.74542207]
[1737046026131,3.80484,3350.4,3350.3,0.45587743]
[1737046027136,3.80484,3350.4,3350.3,0.80407807]
[1737046027340,3.80484,3350.4,3350.3,0.45587743]
[1737046028942,3.80484,3350.4,3350.3,0.74533002]
[1737046029735,3.80484,3350.4,3350.3,0.45587743]
[1737046029932,3.80484,3350.4,3350.3,0.74533278]
[1737046030336,0.59708,3350.1,3350.0,4.68799356]
[1737046030541,2.91470237,3350.1,3349.6,4.68799356]
[1737046030841,3.80495,3349.7,3349.6,4.68799356]
[1737046031842,0.59726,3349.1,3349.0,4.68799356]
[1737046032139,3.80506,3349.1,3349.0,4.68799356]
[1737046032337,8.80506,3349.1,3349.0,1.01559356]
[1737046032536,0.59731,3348.8,3348.7,7.03199034]
[1737046032931,0.59731,3348.8,3348.1,40.8]
[1737046032932,4.70098,3349.1,3348.1,40.8]
[1737046033136,0.59741,3348.3,3348.2,0.3486294]
[1737046033337,0.59742,3348.2,3348.1,40.8]
[1737046034244,0.6858,3348.4,3348.1,0.34906052]
[1737046034542,0.6858,3348.4,3348.0,0.6594]
[1737046034742,0.59743,3348.2,3348.1,0.34899417]
[1737046035539,0.59744,3348.1,3348.0,41.4594]
[1737046035745,0.59744,3348.1,3348.0,41.80846493]
[1737046035941,0.59744,3348.1,3348.0,40.8]
[1737046036341,0.00325465,3348.2,3347.5,3.2078]
[1737046036647,0.00325465,3348.2,3347.6,0.34919296]
[1737046036648,0.59751,3347.7,3347.6,0.34919296]
[1737046036843,0.59751,3347.7,3347.6,41.14919296]
[1737046037150,0.00325465,3348.2,3348.0,0.59744]
[1737046037344,0.00325465,3348.2,3348.0,2.91470237]
[1737046037533,0.00325465,3348.2,3348.1,0.34919559]
[1737046037845,0.00325465,3348.2,3348.1,0.94663559]
[1737046038148,0.00325465,3348.2,3348.1,41.74663559]
[1737046039442,0.60067465,3348.2,3348.1,41.14919559]
[1737046040040,0.60067465,3348.2,3348.1,40.8]
[1737046040241,0.60067465,3348.2,3347.5,3.2078]
[1737046040242,0.00325465,3348.2,3347.5,3.2078]
[1737046040444,0.59751,3347.7,3347.6,0.34963207]
[1737046040641,0.00325465,3348.2,3347.6,0.34963207]
[1737046040941,0.00325465,3348.2,3347.5,3.80534]
[1737046040942,0.59751,3347.8,3347.7,41.14963207]
[1737046041136,1.3307,3348.1,3347.7,0.34974115]
[1737046041338,0.00325465,3348.2,3348.1,0.59744]
[1737046041635,0.00325465,3348.2,3348.1,0.94721345]
[1737046042443,0.00325465,3348.2,3348.1,0.88516747]
[1737046042641,0.00325465,3348.2,3348.1,1.23497706]
[1737046042847,0.00325465,3348.2,3348.1,0.28772747]
[1737046043046,0.00325465,3348.2,3347.8,40.8]
[1737046043244,0.59746,3348.0,3347.9,0.28779342]
[1737046044151,0.00325465,3348.2,3347.3,1.2581]
[1737046044152,3.2078,3348.1,3347.3,1.2581]
[1737046044450,0.59755,3347.5,3347.4,0.28780953]
[1737046044650,0.59755,3347.5,3346.5,3.2078]
[1737046044651,1.49383,3347.6,3346.6,0.6489]
[1737046044954,0.59756,3347.5,3346.9,0.6380453]
[1737046045245,3.2078,3347.7,3347.1,2.91470237]
[1737046045551,3.2078,3348.1,3347.5,2.91470237]
[1737046045851,0.59747,3348.0,3347.6,1.86722366]
[1737046046052,0.00325465,3348.2,3347.7,0.6377678]
[1737046046249,0.59746,3348.1,3347.8,0.28794287]
[1737046046440,0.59746,3348.1,3347.9,0.28794287]
[1737046046644,0.60068465,3348.2,3348.0,0.28794287]
[1737046046846,0.00325465,3348.2,3348.1,0.88538287]
[1737046047547,0.00325465,3348.2,3347.6,0.6319]
[1737046047747,0.59749,3347.8,3347.7,0.28767106]
[1737046047949,0.59756,3347.4,3347.3,3.2078]
[1737046048247,0.59756,3347.4,3347.3,3.49559458]
[1737046048454,0.59756,3347.4,3347.3,0.28779458]
[1737046048649,0.59756,3347.4,3346.9,1.329]
[1737046048650,0.59766,3346.9,3346.6,8.31949034]
[1737046048951,0.00325465,3348.2,3346.7,0.28792003]
[1737046048952,0.59767,3346.8,3346.7,0.28792003]
[1737046049454,0.59767,3346.8,3346.2,1.2855]
[1737046049455,4.70202,3346.8,3345.9,1.329]
[1737046049755,0.5978,3346.1,3346.0,0.28802875]
[1737046049955,0.5978,3346.1,3346.0,0.28805325]
[1737046050253,0.59789,3345.6,3345.5,7.03199034]
[1737046050449,0.59789,3345.6,3345.5,0.28789491]
[1737046050751,3.2078,3345.8,3344.7,1.329]
[1737046050752,2.91470237,3345.7,3345.0,40.8]
[1737046051055,0.59798,3345.1,3345.0,40.8]
[1737046051247,0.59797,3345.2,3345.0,40.8]
[1737046051447,0.59798,3345.1,3344.7,0.59803]
[1737046051651,0.59798,3345.1,3344.8,0.28763255]
[1737046051652,0.59799,3345.1,3344.8,0.28763255]
[1737046051851,0.59799,3345.1,3344.9,40.8]
[1737046052043,0.59799,3345.0,3344.9,40.8]
[1737046052245,3.2078,3345.3,3344.5,0.6251]
[1737046052449,3.2078,3345.3,3344.4,3.2078]
[1737046052450,0.59803,3344.8,3344.4,3.2078]
[1737046052651,3.2078,3345.3,3344.5,0.28749601]
[1737046052956,0.59803,3344.8,3344.5,40.8]
[1737046053161,3.2078,3345.3,3344.5,40.8]
[1737046053366,3.2078,3345.3,3344.4,3.2078]
[1737046053367,3.2078,3344.9,3344.4,3.2078]
[1737046053566,0.59807,3344.6,3344.5,0.28740007]
[1737046053763,3.2078,3344.9,3344.5,0.28740007]
[1737046053966,3.2078,3344.9,3344.6,0.59805]
[1737046054454,3.2078,3344.9,3344.7,0.28719399]
[1737046054662,3.2078,3344.9,3344.4,3.2078]
[1737046054861,3.2078,3344.9,3344.6,0.59805]
[1737046055064,3.2078,3344.9,3344.7,0.88520821]
[1737046055271,3.2078,3344.9,3344.8,0.88519821]
[1737046055766,0.59796,3345.2,3344.9,0.59801]
[1737046055964,3.2078,3345.3,3344.9,0.59801]
[1737046055965,3.2078,3345.3,3345.0,0.28716821]
[1737046056166,3.2078,3345.7,3345.6,0.59789]
[1737046056468,3.2078,3345.7,3345.2,3.2078]
[1737046056664,3.2078,3345.7,3345.5,0.5979]
[1737046056969,0.63,3346.3,3345.6,0.28696613]
[1737046056970,3.2078,3346.2,3345.6,0.28696613]
[1737046057266,3.2078,3346.2,3345.2,4.5378]
[1737046057468,0.59788,3345.7,3345.4,0.59791]
[1737046057662,0.59788,3345.7,3345.5,0.28697489]
[1737046057861,0.59788,3345.7,3345.6,0.28697489]
[1737046058061,3.2078,3346.2,3345.2,1.92795]
[1737046058370,0.59781,3346.0,3345.3,0.88492649]
[1737046058570,0.59789,3345.6,3345.4,0.28699649]
[1737046058868,0.59789,3345.6,3345.5,0.28699649]
[1737046059366,0.59799,3345.0,3344.9,0.6403]
[1737046059572,3.2078,3345.5,3344.9,41.72730693]
[1737046059759,2.15328,3345.7,3345.0,0.28700693]
[1737046059966,0.59797,3345.1,3344.9,42.03829]
[1737046060267,0.59797,3345.1,3345.0,0.28723507]
[1737046060461,0.6586,3345.7,3345.0,0.28723507]
[1737046060660,0.59794,3345.4,3345.1,0.88520507]
[1737046060864,0.59794,3345.4,3344.9,41.4403]
[1737046060865,0.6586,3345.7,3344.9,41.4403]
[1737046061065,0.6586,3345.7,3345.0,0.28718766]
[1737046061268,0.6586,3345.7,3345.1,0.28718766]
[1737046061269,0.59793,3345.4,3345.1,0.28718766]
[1737046061470,0.59793,3345.4,3345.2,0.28718766]
[1737046061668,0.59792,3345.5,3345.0,0.59799]
[1737046061870,0.6586,3345.7,3345.4,0.59792]
[1737046062172,3.80565,3345.9,3344.9,41.4403]
[1737046062173,0.59786,3345.8,3345.5,0.28727816]
[1737046062466,3.2078,3345.9,3345.5,0.59789]
[1737046062672,3.80563,3345.9,3345.6,0.2872596]
[1737046062863,3.80563,3345.9,3345.5,0.59789]
[1737046063064,3.80563,3345.9,3345.6,0.28723806]
[1737046063265,0.59785,3345.8,3345.7,0.28723806]
[1737046063461,0.59785,3345.8,3345.5,0.5979]
[1737046063674,3.80564,3345.9,3345.5,0.5979]
[1737046064077,0.59788,3345.7,3345.3,0.59792]
[1737046064265,0.5979,3345.5,3345.4,0.28726953]
[1737046064468,3.2078,3345.5,3344.9,41.4403]
[1737046064773,0.59796,3345.2,3345.0,0.28734178]
[1737046064979,0.59796,3345.2,3345.1,0.28734178]
[1737046065175,0.59795,3345.3,3345.1,0.28734178]
[1737046065379,0.59795,3345.3,3345.0,0.59798]
[1737046065576,0.59794,3345.4,3345.1,0.88529701]
[1737046065777,3.2078,3345.5,3344.9,41.4403]
[1737046066076,3.80577,3345.1,3345.0,0.28731388]
[1737046066273,2.92041604,3345.1,3345.0,0.28731388]
[1737046066675,0.598,3345.0,3344.7,40.8]
[1737046066874,2.32244604,3345.1,3344.3,3.2078]
[1737046067179,0.59804,3344.8,3344.4,0.28735461]
[1737046067476,0.59804,3344.8,3344.3,3.2078]
[1737046067477,0.59804,3344.8,3344.5,41.68543461]
[1737046067781,0.6256,3345.0,3344.5,41.68543461]
[1737046067782,1.2236,3345.0,3344.7,0.59804]
[1737046067983,2.32244604,3345.1,3344.8,0.28735461]
[1737046068279,2.32244604,3345.1,3344.9,0.28735461]
[1737046068477,0.5979,3345.5,3345.0,0.28735461]
[1737046068780,0.59795,3345.3,3345.1,0.28735461]
[1737046068979,0.59795,3345.3,3345.2,0.28735461]
[1737046069176,0.59802,3344.9,3344.7,3.2078]
[1737046069380,0.59801,3344.9,3344.8,0.28756789]
[1737046069879,3.2078,3345.1,3344.5,40.8]
[1737046070077,0.59806,3344.7,3344.6,0.28761653]
[1737046070383,0.59803,3344.8,3344.6,0.88567653]
[1737046070576,0.59803,3344.8,3344.7,0.28757802]
[1737046070774,0.59802,3344.9,3344.7,0.28757802]
[1737046070981,0.59802,3344.9,3344.8,0.28757802]
[1737046071980,3.2078,3345.1,3344.8,0.28757802]
[1737046072181,3.2078,3345.1,3344.9,0.28757802]
[1737046072381,3.2078,3345.1,3345.0,0.28757802]
[1737046072580,3.80577,3345.1,3345.0,0.28757802]
[1737046074378,8.2078,3345.1,3343.9,0.6305]
[1737046074578,0.59809,3344.5,3344.2,0.59813]
[1737046074886,0.59809,3344.5,3344.3,0.63869502]
[1737046075086,3.2078,3345.1,3344.4,0.63869502]
[1737046075280,0.59805,3344.7,3344.5,0.63869502]
[1737046075581,0.598,3345.0,3344.7,0.59804]
[1737046075783,0.59801,3344.9,3344.8,0.63869502]
[1737046079984,0.59801,3344.9,3344.8,0.63873479]
[1737046081187,1.92881,3344.9,3344.8,0.63873479]
[1737046081384,1.92881,3344.9,3344.8,0.64060811]
[1737046081585,0.59801,3344.9,3344.8,0.64060811]
[1737046082177,3.80579,3345.1,3344.8,0.64060811]
[1737046082382,3.80579,3345.1,3344.9,0.64060811]
[1737046082383,3.2078,3345.1,3344.9,0.64060811]
[1737046082591,3.80577,3345.1,3345.0,0.64034248]
[1737046083887,3.2078,3345.5,3345.0,0.64034248]
[1737046084096,3.2078,3345.5,3345.4,0.59792]
[1737046084288,0.5979,3345.5,3345.4,0.64034248]
[1737046084981,0.5979,3345.5,3345.4,0.28823813]
[1737046085187,0.5979,3345.5,3345.4,0.64014258]
[1737046085495,3.2078,3345.8,3345.4,0.64014258]
[1737046085785,3.2078,3345.8,3345.5,0.64014258]
[1737046085988,3.2078,3345.8,3345.1,3.2078]
[1737046085989,3.2078,3345.8,3345.7,0.59787]
[1737046086290,3.2078,3347.0,3346.1,0.5978]
[1737046086492,2.91908875,3347.5,3346.9,0.59765]
[1737046086493,0.6572,3347.5,3346.9,0.59765]
[1737046086786,0.6572,3347.5,3347.0,0.64014258]
[1737046086787,0.59757,3347.4,3347.0,0.64014258]
[1737046086991,0.59755,3347.5,3347.1,1.23775258]
[1737046087186,0.59753,3347.6,3347.2,0.64014258]
[1737046087386,0.59753,3347.6,3347.3,0.64014258]
[1737046087589,3.2078,3347.7,3347.4,0.64014258]
[1737046087795,3.2078,3347.7,3347.5,1.23769258]
[1737046088090,1.3051,3348.1,3347.6,0.64014258]
[1737046088091,4.5129,3348.1,3347.6,0.64014258]
[1737046088292,0.59747,3348.0,3347.7,0.64014258]
[1737046088497,3.865,3348.1,3347.8,0.63841342]
[1737046088689,0.59746,3348.0,3347.9,0.28823813]
[1737046088996,0.00325465,3348.2,3347.9,0.63838501]
[1737046089189,0.00325465,3348.2,3348.1,3.80524]
[1737046089391,0.00325465,3348.2,3348.1,3.49603813]
[1737046089584,0.60067465,3348.2,3348.1,3.49603813]
[1737046089994,0.60067465,3348.2,3348.1,3.49388297]
[1737046090394,0.60067465,3348.2,3348.1,3.2078]
[1737046090593,0.00325465,3348.2,3347.8,0.59749]
[1737046090786,0.00325465,3348.2,3348.1,2.91908875]
[1737046090990,0.00325465,3348.2,3348.1,44.00477002]
[1737046091596,0.00325465,3348.2,3348.1,43.71908875]
[1737046092096,0.00325465,3348.2,3348.0,0.59745]
[1737046092497,0.00325465,3348.2,3347.9,0.6341]
[1737046092799,0.59745,3348.1,3347.6,3.80533]
[1737046092998,3.2078,3348.0,3347.6,3.2078]
[1737046093192,0.00325465,3348.2,3347.6,3.2078]
[1737046093498,0.00325465,3348.2,3347.3,2.91908875]
[1737046093499,0.59751,3347.7,3347.3,2.91908875]
[1737046093702,0.59751,3347.8,3347.3,2.91908875]
[1737046094001,0.59748,3347.9,3347.4,3.80535]
[1737046094403,3.21105465,3348.2,3347.4,3.80535]
[1737046094404,0.5975,3347.8,3347.4,3.2078]
[1737046094700,3.21105465,3348.2,3347.4,3.2078]
[1737046094893,0.5975,3347.8,3347.4,3.2078]
[1737046095193,3.21105465,3348.2,3347.4,3.2078]
[1737046095393,3.21105465,3348.2,3347.3,2.91908875]
[1737046095394,3.2078,3347.8,3347.3,2.91908875]
[1737046095798,0.59754,3347.6,3347.3,2.91908875]
[1737046095997,3.2078,3347.8,3347.3,2.91908875]
[1737046096197,3.8053,3347.8,3347.4,0.59756]
[1737046096395,0.59751,3347.7,3347.4,0.59756]
[1737046096596,3.2078,3347.8,3347.5,0.59754]
[1737046096797,3.8053,3347.8,3347.5,0.59754]
[1737046096995,0.59752,3347.7,3347.4,0.59756]
[1737046097301,3.2078,3347.8,3347.3,2.91908875]
[1737046097489,0.00325465,3348.2,3347.1,1.298]
[1737046097490,3.21105465,3348.2,3347.7,2.91908875]
[1737046097689,0.00325465,3348.2,3347.9,3.2078]
[1737046097894,0.59745,3348.1,3347.9,3.2078]
[1737046098094,0.60068465,3348.2,3347.9,3.80527]
[1737046098297,0.00325465,3348.2,3347.9,3.2078]
[1737046098491,0.00325465,3348.2,3347.7,2.91908875]
[1737046098697,0.60068465,3348.2,3347.8,0.59748]
[1737046098899,0.00325465,3348.2,3347.7,6.12688875]
[1737046099195,0.59732,3348.8,3348.1,6.12688875]
[1737046099401,3.2078,3349.0,3348.2,1.3071]
[1737046099603,0.59735,3348.7,3348.3,41.3974]
[1737046099797,3.2078,3349.0,3348.3,41.3974]
[1737046099995,0.59736,3348.6,3348.3,41.3974]
[1737046100203,3.2078,3349.0,3348.3,40.8]
[1737046100511,0.59739,3348.4,3348.3,40.8]
[1737046100707,3.2078,3349.0,3348.3,40.8]
[1737046101004,3.2078,3349.0,3348.2,1.3071]
[1737046101005,0.5974,3348.4,3348.2,1.3071]
[1737046101201,1.49326,3348.9,3348.2,1.3071]
[1737046101696,3.2078,3349.0,3348.2,1.3071]
[1737046101907,3.2078,3348.5,3348.0,1.298]
[1737046102102,3.2078,3348.5,3347.9,0.59746]
[1737046102301,0.59745,3348.1,3347.7,1.298]
[1737046102499,3.2078,3348.5,3347.7,1.298]
[1737046102500,0.59743,3348.2,3348.0,0.59746]
[1737046103103,0.59741,3348.3,3348.1,0.59744]
[1737046103297,0.59743,3348.2,3347.9,0.59747]
[1737046103509,3.2078,3348.5,3347.9,0.59747]
[1737046103805,3.2078,3348.5,3347.8,2.91908875]
[1737046103806,0.59743,3348.2,3348.0,0.59746]
[1737046104006,3.2078,3348.1,3347.4,0.59755]
[1737046104204,0.59752,3347.7,3347.5,0.59754]
[1737046104410,0.59754,3347.6,3347.4,0.59755]
[1737046104699,3.2078,3348.1,3347.2,3.2078]
[1737046104901,3.2078,3348.1,3347.1,40.8]
[1737046104902,1.3462,3348.3,3347.6,3.2078]
[1737046105501,0.59749,3347.9,3347.7,0.5975]
[1737046105804,0.5975,3347.8,3347.7,0.59751]
[1737046106300,0.5975,3347.8,3347.6,3.80532]
[1737046106502,0.59751,3347.7,3347.6,3.2078]
[1737046107508,1.49357,3348.2,3347.2,3.2078]
[1737046107802,1.3462,3348.3,3347.2,3.2078]
[1737046108001,3.2078,3348.9,3348.0,3.2078]
[1737046108201,3.2078,3348.9,3348.1,0.6564]
[1737046108402,2.75839,3348.8,3348.1,1.25383]
[1737046108603,0.5974,3348.4,3348.1,1.25383]
[1737046108909,1.49338,3348.6,3348.0,3.2078]
[1737046109205,0.59744,3348.1,3347.9,1.29]
[1737046109402,0.59744,3348.1,3347.4,5.07847875]
[1737046109403,3.2078,3348.1,3347.4,0.6655]
[1737046109604,2.91908875,3347.7,3347.2,3.2078]
[1737046109804,0.59755,3347.5,3347.2,3.8054]
[1737046110000,0.59757,3347.4,3347.2,3.2078]
[1737046110210,0.59757,3347.4,3347.1,0.59761]
[1737046110411,0.59756,3347.5,3347.2,0.59759]
[1737046110607,1.328,3347.6,3347.2,0.59759]
[1737046110811,0.59756,3347.5,3347.2,0.59759]
[1737046111413,1.328,3347.6,3346.8,3.2078]
[1737046111414,0.59765,3346.9,3346.8,3.2078]
[1737046111610,4.70176,3347.3,3346.4,0.6655]
[1737046111611,3.2078,3347.3,3346.4,0.6655]
[1737046111814,3.2078,3346.9,3346.3,40.8]
[1737046112117,3.2078,3346.5,3345.7,0.6828]
[1737046112314,5.90708875,3347.3,3345.4,3.2078]
[1737046112315,0.59786,3345.8,3345.4,3.80571]
[1737046112519,3.2078,3346.1,3345.2,1.29]
[1737046112520,0.59789,3345.6,3345.5,40.8]
[1737046112714,3.2078,3346.1,3345.5,40.8]
[1737046113424,0.59784,3345.9,3345.5,41.39789]
[1737046114121,3.2078,3346.1,3345.5,40.8]
[1737046114315,0.59784,3345.9,3345.6,0.28663202]
[1737046114514,0.59784,3345.9,3345.7,0.28663202]
[1737046114707,0.59784,3345.9,3345.8,0.28663202]
[1737046115020,0.59783,3346.0,3345.8,0.28663202]
[1737046115212,3.2078,3346.1,3345.9,0.28662074]
[1737046115417,3.8056,3346.1,3346.0,0.28687279]
[1737046115711,3.2078,3346.1,3346.0,0.28687279]
[1737046115915,3.8056,3346.1,3346.0,0.28687279]
[1737046116111,0.59778,3346.2,3346.0,0.28687279]
[1737046116315,0.59778,3346.2,3346.1,0.28687279]
[1737046116815,1.24527,3346.3,3346.1,0.28687279]
[1737046117020,1.23735,3346.4,3346.2,0.28687279]
[1737046117219,1.23735,3346.4,3346.3,0.28687279]
[1737046117422,0.6396,3346.4,3346.3,0.28687279]
[1737046117619,1.23734,3346.4,3346.3,0.28687279]
[1737046118521,0.5978,3346.1,3345.7,0.59786]
[1737046118719,0.5978,3346.1,3345.8,0.63639085]
[1737046118920,0.5978,3346.1,3345.9,0.28647192]
[1737046118921,0.59781,3346.0,3345.9,0.28647192]
[1737046119618,0.59788,3345.7,3345.5,40.8]
[1737046119813,3.2078,3346.1,3345.6,0.28636695]
[1737046120009,3.2078,3346.1,3345.5,40.8]
[1737046120010,0.59785,3345.8,3345.7,0.28550755]
[1737046120219,0.59785,3345.8,3345.0,7.41788875]
[1737046120220,0.59797,3345.1,3345.0,3.2078]
[1737046120517,0.59795,3345.3,3345.0,0.28540697]
[1737046120818,0.59797,3345.2,3345.1,0.28540697]
[1737046121011,3.2078,3345.7,3345.1,0.28542177]
[1737046121207,0.59794,3345.3,3345.2,0.28542177]
[1737046121418,0.59798,3345.1,3344.6,41.39805]
[1737046121611,0.59798,3345.1,3344.7,0.63459637]
[1737046121807,4.41372875,3345.8,3344.8,0.28521485]
[1737046121808,3.2078,3345.3,3344.8,0.28521485]
[1737046122009,0.59797,3345.2,3344.9,0.28521485]
[1737046122221,0.59797,3345.2,3345.0,0.28521485]
[1737046122421,0.59797,3345.2,3344.7,0.59804]
[1737046122614,0.59797,3345.2,3344.8,0.28506198]
[1737046122817,0.59797,3345.2,3344.9,0.28506198]
[1737046123016,0.59797,3345.2,3345.0,0.28506198]
[1737046123326,0.59797,3345.2,3344.7,0.59804]
[1737046123516,0.59797,3345.2,3344.8,0.88297871]
[1737046123717,0.59797,3345.2,3344.9,0.28494871]
[1737046123927,0.59797,3345.2,3344.7,0.59804]
[1737046124120,0.59797,3345.2,3344.8,0.2849425]
[1737046124433,3.2078,3345.7,3344.9,3.4927425]
[1737046124618,3.2078,3345.7,3345.0,0.2849425]
[1737046124826,3.2078,3345.7,3345.3,0.59793]
[1737046125017,3.2078,3345.7,3344.9,3.2078]
[1737046125018,3.2078,3346.1,3344.9,3.2078]
[1737046125217,3.2078,3346.1,3345.4,0.59792]
[1737046125218,0.59783,3346.0,3345.4,0.59792]
[1737046125420,0.59783,3345.9,3345.6,0.59788]
[1737046125625,0.59783,3345.9,3345.5,0.59789]
[1737046125827,0.59786,3345.8,3345.4,0.59791]
[1737046126021,0.59786,3345.8,3345.5,0.28467407]
[1737046126229,0.59787,3345.7,3345.6,40.8]
[1737046127125,4.7023,3346.1,3345.2,1.4495]
[1737046127126,6.12688875,3346.1,3345.2,1.4495]
[1737046127428,0.59793,3345.4,3345.2,1.4495]
[1737046127725,0.59791,3345.5,3345.3,40.8]
[1737046128526,1.49454,3346.0,3345.3,40.8]
[1737046128726,1.49454,3346.0,3344.8,6.12688875]
[1737046128727,7.62156875,3345.7,3344.8,3.80582]
[1737046128932,7.62156875,3345.7,3344.8,3.2078]
[1737046129229,0.59798,3345.1,3344.8,3.80582]
[1737046129521,3.2078,3345.3,3344.6,40.8]
[1737046129730,0.59803,3344.9,3344.7,0.28481407]
[1737046129918,0.598,3345.0,3344.7,0.59805]
[1737046130119,0.59802,3344.9,3344.6,41.39805]
[1737046130323,0.59802,3344.9,3344.7,0.2848683]
[1737046130528,0.59805,3344.7,3344.6,40.8]
[1737046130725,0.59805,3344.7,3344.4,3.2078]
[1737046130726,3.2078,3345.3,3344.4,3.2078]
[1737046130916,1.49494,3345.1,3344.5,0.28489711]
[1737046131123,0.59806,3344.7,3344.5,0.59807]
[1737046131322,1.49494,3345.1,3344.5,0.59807]
[1737046131323,0.59804,3344.8,3344.5,0.59807]
[1737046132023,3.2078,3345.3,3344.6,0.28497401]
[1737046132229,0.59796,3345.2,3344.6,0.59806]
[1737046132427,3.2078,3345.3,3344.7,0.28499036]
[1737046132631,0.8467,3345.4,3344.8,0.28493946]
[1737046132929,0.59802,3344.9,3344.6,0.59806]
[1737046133131,0.59803,3344.8,3344.7,0.28497087]
[1737046133328,1.4949,3345.2,3344.0,3.2078]
[1737046133525,1.4949,3345.2,3344.1,0.63455656]
[1737046133729,1.4949,3345.2,3344.2,0.63455656]
[1737046134023,3.2078,3345.3,3344.3,0.28521499]
[1737046134227,1.49494,3345.1,3344.4,0.28521499]
[1737046134425,0.59806,3344.7,3344.5,0.28521499]
[1737046134730,1.49494,3345.1,3344.0,3.2078]
[1737046135026,0.59807,3344.6,3344.3,0.5981]
[1737046135226,0.59807,3344.6,3344.4,0.88334183]
[1737046135531,0.59807,3344.6,3344.5,0.28525183]
[1737046135726,1.4949,3345.2,3344.5,0.28525183]
[1737046136030,0.59805,3344.7,3344.6,0.28525183]
[1737046137533,0.59797,3345.1,3344.6,0.88331183]
[1737046137734,0.59799,3345.1,3344.8,0.59802]
[1737046138024,0.59802,3344.9,3344.7,40.8]
[1737046138222,0.59802,3344.9,3344.8,0.28572723]
[1737046138935,0.59802,3344.9,3344.4,3.2078]
[1737046139230,0.59802,3344.9,3342.5,9.37598713]
[1737046139231,0.64342,3342.6,3342.5,2.46374465]
[1737046139442,0.64342,3342.6,3341.9,9.76625725]
[1737046139443,0.59853,3342.0,3341.9,9.76625725]
[1737046139625,2.91908875,3341.9,3341.5,15.87332864]
[1737046139828,0.59864,3341.4,3341.3,18.61118383]
[1737046140124,0.59864,3341.4,3341.3,5.42102028]
[1737046140328,3.51772875,3341.4,3341.3,5.42102028]
[1737046140923,3.51772875,3341.4,3340.4,3.2078]
[1737046140924,2.91908875,3341.4,3340.4,3.2078]
[1737046141119,3.2078,3341.6,3341.3,2.9904]
[1737046141324,2.91908875,3341.9,3341.5,2.9904]
[1737046141533,2.91908875,3341.9,3340.8,3.2078]
[1737046141534,0.59856,3341.8,3341.7,2.9904]
[1737046141726,3.51763875,3341.9,3341.8,2.9904]
[1737046141927,2.91908875,3342.3,3341.8,2.9904]
[1737046142124,3.2078,3342.6,3342.4,2.9904]
[1737046142435,3.80623,3342.6,3342.4,43.7904]
[1737046142732,3.2078,3342.6,3342.5,2.9904]
[1737046143526,6.38680295,3342.6,3341.8,0.8412]
[1737046143733,0.59844,3342.5,3341.8,0.8412]
[1737046143934,0.59849,3342.3,3342.0,2.9904]
[1737046144129,0.59856,3341.9,3341.7,0.8003]
[1737046144334,0.59856,3341.9,3341.3,0.59864]
[1737046144531,3.17900295,3342.1,3341.3,0.59864]
[1737046144831,0.59853,3342.0,3341.4,0.59863]
[1737046145035,2.31756139,3341.9,3341.2,4.5588]
[1737046145222,2.31756139,3341.9,3341.5,0.5986]
[1737046145935,2.31756139,3341.9,3341.2,4.5588]
[1737046146333,2.31756139,3342.0,3341.9,0.59855]
[1737046147432,2.31756139,3342.0,3341.9,41.39855]
[1737046147932,7.84780063,3342.8,3342.6,0.59842]
[1737046147933,2.31756139,3342.7,3342.6,0.59842]
[1737046148130,2.31756139,3342.7,3342.6,3.80622]
[1737046148327,2.31756139,3342.7,3342.5,0.59843]
[1737046148533,2.31756139,3342.7,3342.3,0.59846]
[1737046148731,0.59843,3342.6,3342.0,1.351]
[1737046149830,5.52536139,3343.0,3342.0,1.351]
[1737046150034,0.59845,3342.5,3342.0,1.351]
[1737046150534,0.59841,3342.7,3342.1,0.5985]
[1737046150833,2.31756139,3342.8,3342.4,0.59845]
[1737046151038,2.31756139,3342.8,3342.3,0.59846]
[1737046151337,2.31756139,3342.8,3342.2,3.2078]
[1737046151536,2.31756139,3342.8,3342.4,0.59845]